Workbook

Sheet Investment_Projections
B2: Welcome to our interactive investment planning tool. It provides you with "insider knowledge" on the impact of charges. Go to "Input area", enter your investment value, your target growth rate (before charges) and how long (term) you wish to invest for. Then you can compare the output in your chosen currency. It provides 7 projections; 5 of which are the most popularly recommended offshore bond products (OMI - previously Royal Skandia, Generali, Royal London) and 2 of which are UK based. These projections are at identical gross growth rates and so the differences are down to the impact of charges.
B10: If you need any assistance with this, or further advice regarding your investment, please call us on +44 (0) 1225 436200, or email us at help@tailormadeadvice.com © Aisa Direct Ltd 2014 (worldwide)
B17: Input area
B19: Name | C19: Your Name
B20: Email | C20: You@Youremail.com
B21: Telephone | C21: 01234567890
B23: Input Currency | D23: Currency Output
B27: Investment | C27: 70000 | D27: =Calc_sheet!W50 -> GBP (£)
B29: Growth Rate | C29: 7 | D29: %
B30: Term | C30: 15 | D30: Years
B34: ** See Disclaimer section for information
I37: Lowest Provider Return | L37: Extra Growth you receive from P4E
I38: =Calc_sheet!AC45 -> 117312.3151 | K38: =Calc_sheet!X50 -> GBP (£) | L38: =Calc_sheet!AC48 -> 0.4064800626 | M38: =" equal to " -> equal to | N38: =Calc_sheet!X50 -> GBP (£) | O38: =Calc_sheet!AC47 -> 47685.11719
N39: © Aisa Direct Ltd 2014 (worldwide)
B99: Assumptions
B100: =Calc_sheet!A23 -> 4 | C100: =Calc_sheet!B23 -> trades conducted annually (buy and sell will double) | K100: =Calc_sheet!H23 -> Generali Service Charge is annually reviewed in line with Irish earnings index
B101: =Calc_sheet!A24 -> 15000 | C101: =Calc_sheet!B24 -> value of trades conducted (buy and sell will double) | K101: =Calc_sheet!H24 -> Rl PIMS first 10 dealings are free
B102: =Calc_sheet!A25 -> 50000 | C102: =Calc_sheet!B25 -> Minimum Investment amount | K102: =Calc_sheet!H25 -> RL PIMS is flexible product
B103: =Calc_sheet!A26 -> 1000000 | C103: =Calc_sheet!B26 -> Maximum Investment amount | K103: =Calc_sheet!H26 -> RL PIMS 10 year set up with 10 year surrender term
B104: =Calc_sheet!A27 -> 2.5 | C104: =Calc_sheet!B27 -> Lowest growth rate | K104: =Calc_sheet!H27 -> RL PIMS 5 year set up with 5 year surrender term
B105: =Calc_sheet!A28 -> 20 | C105: =Calc_sheet!B28 -> Highest growth rate | K105: =Calc_sheet!H28 -> If selected, then advice fees are 2%
B106: =Calc_sheet!A29 -> 1.6 | C106: =Calc_sheet!B29 -> Fund AMC for active investments | K106: =Calc_sheet!H29 -> If selected, as a QROPS then the annual cost is £800
B108: Provider Fees
B109: =Calc_sheet!H14 -> Platform | C109: No Establishment fee /Surrender charge. €36 annual fee, 0.45% annual charge taken quarterly Fund charges 0.9% (Advice fee 2%)
B110: =Calc_sheet!H15 -> Generali | C110: Establishment fee 2% and Commission/Surrender charge 7.5%, reducing at 1.5% over 5 years. €200 quarterly fee, Fund charges 1.6%
B111: =Calc_sheet!H16 -> OMI AV279 | C111: Establishment fee 1% added forever, Surrender charge 8%, reducing at 1%pa over 8 years. £96 quarterly fee, Fund charges 1.6%
B112: =Calc_sheet!H17 -> OMI AV797 | C112: Establishment fee /Surrender charge 8.8%, applied over 8 years. £96 quarterly fee, Fund charges 1.6% (Charges reduced for fee advice)
B113: =Calc_sheet!H18 -> Sterling Custodian | C113: No Establishment fee /Surrender charge. £50 annual fee, 0.25% annual charge taken monthly. Fund charges 0.6% (Advice fee 2%)
B114: =Calc_sheet!H19 -> RL PIMS 5yr | C114: Establishment fee /Surrender charge 8.5%, factored at 1.2 over 5 years. £90 quarterly fee, Fund charges 1.6% (Charges reduced for fee advice)
B115: =Calc_sheet!H20 -> RL PIMS 10yr | C115: Establishment fee /Surrender charge 8.5%, factored at 1.3 over 10 years. £90 quarterly fee, Fund charges 1.6%
B117: Disclaimer
B118: If "Advice Fee Option" is ticked then it shows the projections taking into account a fee of 2% and no commission.
B119: If "Taxed" is ticked then it allows for CGT/Income &Corporation Tax on annual growth within the funds only. It does NOT allow
B120: for your own personal tax on realised funds, or at the point of access. You must contact a local accountant for personal taxes.
B121: If "SIPP" is ticked then it allows for a SIPP charge to be added to costs for each individual annual projection.
B122: If "QROPS" is ticked then it allows for a QROPS charge to be added to costs for each individual annual projection.
B123: These projections are not authorised as official by the companies and they take into account the additional charges for
B124: trading infrequently on the relevant platforms (buying and selling a share or collective), as well as fund charges incurred.
B125: Exchange rates (July 2014) are £/$ 1.66, £/€ 1.22, €/$ 1.37
B126: The value of investments can go up as well as down and past performance should not be used as a guide to future returns.
B127: The actual growth received on an investment will depend on the performance of the underlying assets.
B128: The same growth rate is used for all providers, and that growth rate is selected by the user above.
B129: For full cash-flow proections and and an accurate guide to requirements then please contact us for projections that will
B130: be personalised to the user (you) with more accurate figures. These projections should not be used in isolation.

Sheet Calc_sheet (hidden)
B1: Percentage charges (%) | T1: Fee's (Including QROPS Trustees) | Y1: Dealing charges
B2: Initial Allocation | C2: Establishment Charge | D2: How often | E2: How many years? | F2: Annual Charge | H2: Fund Charges | I2: 1 Cost | J2: 2 Cost | K2: 3 Cost | L2: 4 Cost | M2: 5 Cost | N2: 6 Cost | O2: 7 Cost | P2: 8 Cost | Q2: 9 Cost | R2: 10 Cost | S2: 11 Cost | T2: Currency | U2: Admin / Portfolio (annual) | V2: Service Charge (annual) | W2: How often | X2: Actual Cost | Y2: Currency or percentage | Z2: Dealing charge | AA2: Deals | AB2: Cost
AF3: S13 copy
A4: Platform | B4: 100 | C4: 2 | E4: 1 | F4: 0.45 | G4: quarterly | H4: =$A$29-0.6 -> 1 | I4: =(F4*POWER(1+(1/100),4))+H4+C4 -> 3.468271805 | J4: =(($F$4)*POWER(1+(1/100),4))+$H$4 -> 1.468271805 | K4: 1.468271805 | L4: 1.468271805 | M4: 1.468271805 | N4: 1.468271805 | O4: 1.468271805 | P4: 1.468271805 | Q4: 1.468271805 | R4: 1.468271805 | S4: 1.468271805 | T4: Euro | U4: =36/Z45+C18/1.5 -> 29.50819672 | V4: 0 | W4: annually | X4: =(((U4+V4)*POWER(1+(1/100),4))) -> 30.70634784 | Y4: % | Z4: 0.2 | AA4: =$A$23*2 -> 8 | AB4: =IF(Y4="%",$A$24*Z4%*AA4,AA4*Z4) -> 240 | AF4: =IF(P7>10,P7,0) -> 0
A5: Generali | B5: 100 | C5: 2 | D5: quarterly | E5: 1 | F5: =IF(E16,0.135*4,0.375*4) -> 1.5 | G5: quarterly | H5: =$A$29/1 -> 1.6 | I5: =((C5+F5)*POWER(1+(1/100),4))+$H$5 -> 5.242114035 | J5: =(($F$5)*POWER(1+(1/100),4))+$H$5 -> 3.160906015 | K5: =(($F$5)*POWER(1+(1/100),4))+$H$5 -> 3.160906015 | L5: 3.160906015 | M5: 3.160906015 | N5: =$H$5 -> 1.6 | O5: =$H$5 -> 1.6 | P5: 1.6 | Q5: 1.6 | R5: 1.6 | S5: 1.6 | T5: Euro | U5: =C18 -> 0 | V5: =800/Z45 -> 655.7377049 | W5: quarterly | X5: =(((U5+V5)*POWER(1+(1/100),4))) -> 682.3632852 | Y5: Euro | Z5: =50/Z45 -> 40.98360656 | AA5: =$A$23*2 -> 8 | AB5: 327.8688525 | AF5: =IF($S$13=0,0,AE4*POWER(1+(($C$16-#REF!)/100),$S$21)-((#REF!+#REF!)*(100+$C$16/2)%)*$S$21) -> 
A6: OMI AV279 | B6: 100 | C6: 0 | F6: 1 | G6: quarterly | H6: =$A$29/1 -> 1.6 | I6: =(($F$6)*POWER(1+(1/100),4))+$H$6 -> 2.64060401 | J6: =(($F$6)*POWER(1+(1/100),4))+$H$6 -> 2.64060401 | K6: 2.64060401 | L6: 2.64060401 | M6: 2.64060401 | N6: 2.64060401 | O6: 2.64060401 | P6: 2.64060401 | Q6: 2.64060401 | R6: 2.64060401 | S6: 2.64060401 | T6: £ | U6: =C18+96*4 -> 384 | V6: 0 | W6: quarterly | X6: =((U6+V6)*POWER(1+(1/100),4)) -> 399.5919398 | Y6: £ | Z6: 15 | AA6: =$A$23*2 -> 8 | AB6: 120 | AF6: =IF($S$13=0,0,AE5*POWER(1+(($C$16-#REF!)/100),$S$21)-((#REF!+#REF!)*(100+$C$16/2)%)*$S$21) -> 
A7: OMI AV797 | B7: 100 | C7: =IF(E16,0.8,1.1) -> 1.1 | D7: quarterly | E7: =IF(E16,5,8) -> 8 | F7: 0 | H7: =$A$29/1 -> 1.6 | I7: =(($C$7)*POWER(1+(1/100),4))+$H$7 -> 2.744664411 | J7: =(($C$7)*POWER(1+(1/100),4))+$H$7 -> 2.744664411 | K7: 2.744664411 | L7: 2.744664411 | M7: 2.744664411 | N7: =IF($E$16,$H$7,(($C$7)*POWER(1+(1/100),4))+$H$7) -> 2.744664411 | O7: =IF($E$16,$H$7,(($C$7)*POWER(1+(1/100),4))+$H$7) -> 2.744664411 | P7: 2.744664411 | Q7: =$H$7 -> 1.6 | R7: =$H$7 -> 1.6 | S7: =$H$7 -> 1.6 | T7: £ | U7: =C18+96*4 -> 384 | V7: 0 | W7: quarterly | X7: =((U7+V7)*POWER(1+(1/100),4)) -> 399.5919398 | Y7: £ | Z7: 15 | AA7: =$A$23*2 -> 8 | AB7: 120 | AF7: =IF($S$13=0,0,AE6*POWER(1+(($C$16-#REF!)/100),$S$21)-((#REF!+#REF!)*(100+$C$16/2)%)*$S$21) -> 
A8: Sterling Custodian | B8: 100 | C8: 2 | E8: 1 | F8: 0.25 | G8: monthly | H8: =$A$29-1 -> 0.6 | I8: =(F8*POWER(1+(1/100),4))+H8+C8 -> 2.860151003 | J8: =(($F$8)*POWER(1+(1/100),12))+$H$8 -> 0.8817062575 | K8: 0.8817062575 | L8: 0.8817062575 | M8: 0.8817062575 | N8: 0.8817062575 | O8: 0.8817062575 | P8: 0.8817062575 | Q8: 0.8817062575 | R8: 0.8817062575 | S8: 0.8817062575 | T8: £ | U8: =IF(C18/4>190,500,IF(C18=0,0,150)) -> 0 | V8: 0 | X8: =((U8+V8)*POWER(1+(1/100),4)) -> 0 | Y8: £ | Z8: 12.5 | AA8: =$A$23*2 -> 8 | AB8: 100 | AF8: =IF($S$13=0,0,AE7*POWER(1+(($C$16-#REF!)/100),$S$21)-((#REF!+#REF!)*(100+$C$16/2)%)*$S$21) -> 
A9: RL PIMS 5yr | B9: 100 | C9: =IF(E16,IF(C15>499000,(3.5*1.2)/5,(4.08*1.2)/5),(8.5*1.2)/5) -> 2.04 | D9: quarterly | E9: 5 | F9: 0 | H9: =$A$29/1 -> 1.6 | I9: =(($C$9)*POWER(1+(1/100),4))+$H$9 -> 3.72283218 | J9: =(($C$9)*POWER(1+(1/100),4))+$H$9 -> 3.72283218 | K9: =(($C$9)*POWER(1+(1/100),4))+$H$9 -> 3.72283218 | L9: =(($C$9)*POWER(1+(1/100),4))+$H$9 -> 3.72283218 | M9: =(($C$9)*POWER(1+(1/100),4))+$H$9 -> 3.72283218 | N9: =$H$9 -> 1.6 | O9: 1.6 | P9: 1.6 | Q9: 1.6 | R9: 1.6 | S9: 1.6 | T9: £ | U9: =C18+90*4 -> 360 | V9: 0 | W9: quarterly | X9: =((U9+V9)*POWER(1+(1/100),4)) -> 374.6174436 | Y9: £ | Z9: 20 | AA9: =IF($A$23>5,($A$23*2)-10,0) -> 0 | AB9: 0 | AF9: =IF($S$13=0,0,AE8*POWER(1+(($C$16-#REF!)/100),$S$21)-((#REF!+#REF!)*(100+$C$16/2)%)*$S$21) -> 
A10: RL PIMS 10yr | B10: 100 | C10: =(8.5*1.3)/10 -> 1.105 | D10: quarterly | E10: 10 | F10: 0 | H10: =$A$29/1 -> 1.6 | I10: =(($C$10)*POWER(1+(1/100),4))+$H$10 -> 2.749867431 | J10: =(($C$10)*POWER(1+(1/100),4))+$H$10 -> 2.749867431 | K10: 2.749867431 | L10: 2.749867431 | M10: 2.749867431 | N10: 2.749867431 | O10: 2.749867431 | P10: 2.749867431 | Q10: 2.749867431 | R10: 2.749867431 | S10: =$H$10 -> 1.6 | T10: £ | U10: =C18+90*4 -> 360 | V10: 0 | W10: quarterly | X10: =((U10+V10)*POWER(1+(1/100),4)) -> 374.6174436 | Y10: £ | Z10: 20 | AA10: =IF($A$23>5,($A$23*2)-10,0) -> 0 | AB10: 0 | AF10: =IF($S$13=0,0,AE9*POWER(1+(($C$16-#REF!)/100),$S$21)-((#REF!+#REF!)*(100+$C$16/2)%)*$S$21) -> 
AF11: =IF($S$13=0,0,AE10*POWER(1+(($C$16-#REF!)/100),$S$21)-((#REF!+#REF!)*(100+$C$16/2)%)*$S$21) -> 
D12: Output - no surrender | AF12: =AF4-10 -> -10
I13: 1 | J13: 2 | K13: 3 | L13: 4 | M13: 5 | N13: 6 | O13: 7 | P13: 8 | Q13: 9 | R13: 10 | S13: =IF(C17>9,C17,0) -> 15 | T13: RETURN | U13: 0.02 | V13: 0.14 | W13: 0.02 | X13: 0.14
A14: INPUT SHEET | H14: =A4 -> Platform | I14: =$C$15*(100+$C$16-I4)%-(($X4+$AB4)*(100+$C$16/$H$30)%) -> 72192.02867 | J14: =I14*(100+$C$16-J4)%-(($X4+$AB4)*(100+$C$16/$L$30)%) -> 75898.99792 | K14: =J14*(100+$C$16-K4)%-(($X4+$AB4)*(100+$C$16/$L$30)%) -> 79811.02664 | L14: 83939.45815 | M14: 88296.26327 | N14: 92894.07501 | O14: 97746.2252 | P14: 102866.7831 | Q14: 108270.5964 | R14: 113973.334 | S14: =IF($S$13=0,0,R14*POWER(1+(($C$16-S4)/100),$S$21)-(($X4+$AB4)*(100+$C$16/$L$30)%)*$S$21) -> 147750.2263 | T14: =HLOOKUP($C$17,$I$13:$S$20,2)*W51 -> 147750.2263 | U14: 2 | V14: 2 | W14: 2 | X14: 2
A15: Investment | C15: =Investment_Projections!C27 -> 70000 | E15: Aisa Fees | F15: QROPS | H15: =A5 -> Generali | I15: =$C$15*(100+$C$16-I5)%-(($X5+$AB5)*(100+$C$16/$H$30)%) -> 70184.92991 | J15: =I15*(100+$C$16-J5)%-(($X5+$AB5)*(100+$C$16/$L$30)%) -> 71810.23299 | K15: 73497.93298 | L15: 75250.42536 | M15: 77070.19757 | N15: 80162.82589 | O15: 83422.45614 | P15: 86858.10643 | Q15: 90479.28183 | R15: 94296.0007 | S15: =IF($S$13=0,0,R15*POWER(1+(($C$16-S5)/100),$S$21)-(($X5+$AB5)*(100+$C$16/$L$30)%)*$S$21) -> 117312.3151 | T15: =HLOOKUP($C$17,$I$13:$S$20,3)*W51 -> 117312.3151 | U15: 7 | V15: 7 | W15: 7 | X15: 7 | Y15: RANK 7
A16: Growth Rate | C16: =IF(E18,Investment_Projections!C29*0.96,Investment_Projections!C29) -> 7 | E16: FALSE | F16: FALSE | H16: OMI AV279 | I16: 72513.79954 | J16: 75125.06173 | K16: 77850.15919 | L16: 80694.05444 | M16: 83661.92635 | N16: 86759.17954 | O16: 89991.45426 | P16: 93364.63664 | Q16: 96884.8694 | R16: 100558.563 | S16: 121723.9759 | T16: =HLOOKUP($C$17,$I$13:$S$20,4)*W51 -> 121723.9759 | U16: 6 | V16: 6 | W16: 6 | X16: 6
A17: Term | C17: =Investment_Projections!C30 -> 15 | E17: Taxed | F17: SIPP | H17: OMI AV797 | I17: 72440.95725 | J17: 74973.66162 | K17: 77614.14106 | L17: 80366.98175 | M17: 83236.96506 | N17: 86229.07579 | O17: 89348.51087 | P17: 92600.68838 | Q17: 97051.22408 | R17: 101742.0887 | S17: 129594.3241 | T17: =HLOOKUP($C$17,$I$13:$S$20,5)*W51 -> 129594.3241 | U17: 5 | V17: 4 | W17: 3 | X17: 3
A18: QROPS Annual cost | C18: =IF(F16,800,IF(F18,600,0)) -> 0 | D18: Comms | E18: FALSE | F18: FALSE | H18: Sterling Custodian | I18: 72794.3943 | J18: 77142.33584 | K18: 81756.29721 | L18: 86652.55429 | M18: 91848.37877 | N18: 97362.09904 | O18: 103213.1649 | P18: 109422.2162 | Q18: 116011.1555 | R18: 123003.2254 | S18: 164997.4323 | T18: =HLOOKUP($C$17,$I$13:$S$20,6)*W51 -> 164997.4323 | U18: 1 | V18: 1 | W18: 1 | X18: 1 | Y18: RANK 1
A19: Aisa initial fee | C19: =IF(E16,2,0) -> 0 | D19: 7 | H19: RL PIMS 5yr | I19: 71906.28842 | J19: 73866.30804 | K19: 75890.56078 | L19: 77981.15169 | M19: 80140.25477 | N19: 84071.3584 | O19: 88214.74163 | P19: 92581.86755 | Q19: 97184.81827 | R19: 102036.3283 | S19: 130744.2211 | T19: =HLOOKUP($C$17,$I$13:$S$20,7)*W51 -> 130744.2211 | U19: 3 | V19: 3 | W19: 4 | X19: 4
H20: RL PIMS 10yr | I20: 72587.36374 | J20: 75275.9528 | K20: 78078.81046 | L20: 81000.79329 | M20: 84046.96426 | N20: 87222.60153 | O20: 90533.2076 | P20: 93984.51881 | Q20: 97582.51533 | R20: 101333.4315 | S20: 129829.9086 | T20: =HLOOKUP($C$17,$I$13:$S$20,8)*W51 -> 129829.9086 | U20: 4 | V20: 5 | W20: 5 | X20: 5
S21: =S13-10 -> 5 | T21: =T18-T15 -> 47685.11719 | U21: DIFFERENCE | AD21: year 1 - X line chart
A22: Assumptions | AD22: =C15*W51 -> 70000
A23: 4 | B23: trades conducted annually (buy and sell will double) | H23: Generali Service Charge is annually reviewed in line with Irish earnings index | AC23: Platform Multi-Currency | AD23: =T34 -> 147750.2263 | AE23: =$AD$22 -> 70000
A24: 15000 | B24: value of trades conducted (buy and sell will double) | H24: Rl PIMS first 10 dealings are free | AC24: Generali | AD24: =T35 -> 117312.3151 | AE24: =$AD$22 -> 70000
A25: 50000 | B25: Minimum Investment amount | H25: RL PIMS is flexible product | AC25: OMI (Royal Skandia) AV279 | AD25: 121723.9759 | AE25: 70000
A26: 1000000 | B26: Maximum Investment amount | H26: RL PIMS 10 year set up with 10 year surrender term | AC26: OMI (Royal Skandia) (5%) | AD26: 129594.3241 | AE26: 70000
A27: 2.5 | B27: Lowest growth rate | H27: RL PIMS 5 year set up with 5 year surrender term | AC27: Sterling only custodian | AD27: 164997.4323 | AE27: 70000
A28: 20 | B28: Highest growth rate | H28: If selected, then advice fees are 2% | AC28: Royal London PIMS 5yr | AD28: 130744.2211 | AE28: 70000
A29: 1.6 | B29: Fund AMC for active investments | H29: If selected, as a QROPS then the annual cost is £800 | AC29: Royal London PIMS 10yr | AD29: 129829.9086 | AE29: 70000
C30: Impact of ongoing charges factor | H30: 2 | I30: Impact of ongoing charges year 2 onwards | L30: 1.2
D32: Output - after surrender
D33: Early Discontinuation | I33: 1 | J33: 2 | K33: 3 | L33: 4 | M33: 5 | N33: 6 | O33: 7 | P33: 8 | Q33: 9 | R33: 10 | S33: =S13 -> 15 | T33: RETURN | U33: Surrender | V33: Earnings | AD33: Year 4 discontinuation comparison
G34: =H14 -> Platform | I34: =I14*(100-I45)% -> 72192.02867 | J34: 75898.99792 | K34: 79811.02664 | L34: 83939.45815 | M34: 88296.26327 | N34: 92894.07501 | O34: 97746.2252 | P34: 102866.7831 | Q34: 108270.5964 | R34: 113973.334 | S34: 147750.2263 | T34: =HLOOKUP($C$17,$I$33:$S$40,2)*W51 -> 147750.2263 | U34: =T34-T14 -> 0 | V34: =$C$19%*$C$15 -> 0 | AD34: Continuing with your plan | AE34: Stopping your plan early | AF34: Initial Investment Amount
G35: Generali | I35: =I15*(100-I46)% -> 65131.61496 | J35: 67788.85994 | K35: 70558.01566 | L35: 73444.41515 | M35: 76453.63599 | N35: 80162.82589 | O35: 83422.45614 | P35: 86858.10643 | Q35: 90479.28183 | R35: 94296.0007 | S35: 117312.3151 | T35: =HLOOKUP($C$17,$I$33:$S$40,3)*W51 -> 117312.3151 | U35: 0 | V35: =IF(E16,2%*$C$15,$D$19%*$C$15) -> 4900 | AC35: =AC23 -> Platform Multi-Currency | AD35: =L14*$W$51 -> 83939.45815 | AE35: =L34*$W$51 -> 83939.45815 | AF35: =AE23 -> 70000
G36: OMI AV279 | I36: =I16*(100-I47)% -> 67075.26457 | J36: 70241.93272 | K36: 73568.40044 | L36: 77062.82199 | M36: 80733.75892 | N36: 84590.20005 | O36: 88641.58245 | P36: 92897.81346 | Q36: 96884.8694 | R36: 100558.563 | S36: 121723.9759 | T36: =HLOOKUP($C$17,$I$33:$S$40,4)*W51 -> 121723.9759 | U36: 0 | V36: =$D$19%*$C$15 -> 4900 | AC36: =AC24 -> Generali | AD36: 75250.42536 | AE36: =L35*$W$51 -> 73444.41515 | AF36: 70000
G37: OMI AV797 | I37: =I17*(100-I48)% -> 66790.56259 | J37: 69950.42629 | K37: 73267.74916 | L37: 76750.46757 | M37: 80406.90825 | N37: 84245.80704 | O37: 88276.32874 | P37: 92508.08769 | Q37: 97051.22408 | R37: 101742.0887 | S37: 129594.3241 | T37: =HLOOKUP($C$17,$I$33:$S$40,5)*W51 -> 129594.3241 | U37: 0 | V37: =IF(E16,2%*$C$15,$D$19%*$C$15) -> 4900 | AC37: OMI (Royal Skandia) AV279 | AD37: 80694.05444 | AE37: 77062.82199 | AF37: 70000
G38: Sterling Custodian | I38: =I18*(100-I49)% -> 72794.3943 | J38: 77142.33584 | K38: 81756.29721 | L38: 86652.55429 | M38: 91848.37877 | N38: 97362.09904 | O38: 103213.1649 | P38: 109422.2162 | Q38: 116011.1555 | R38: 123003.2254 | S38: 164997.4323 | T38: =HLOOKUP($C$17,$I$33:$S$40,6)*W51 -> 164997.4323 | U38: 0 | V38: =$C$19%*$C$15 -> 0 | AC38: OMI (Royal Skandia) (5%) | AD38: 80366.98175 | AE38: 76750.46757 | AF38: 70000
G39: RL PIMS 5yr | I39: =I19*(100-I50)% -> 65290.90988 | J39: 68577.48038 | K39: 72004.96407 | L39: 75579.33222 | M39: 79306.79612 | N39: 84071.3584 | O39: 88214.74163 | P39: 92581.86755 | Q39: 97184.81827 | R39: 102036.3283 | S39: 130744.2211 | T39: =HLOOKUP($C$17,$I$33:$S$40,7)*W51 -> 130744.2211 | U39: 0 | V39: =IF(E16,2%*$C$15,$D$19%*$C$15) -> 4900 | AC39: Sterling only custodian | AD39: 86652.55429 | AE39: 86652.55429 | AF39: 70000
G40: RL PIMS 10yr | I40: =I20*(100-I51)% -> 64929.39687 | J40: 68166.13906 | K40: 71567.03767 | L40: 75140.38589 | M40: 78894.88535 | N40: 82839.6658 | O40: 86984.30586 | P40: 91338.85461 | Q40: 95913.85432 | R40: 100720.3642 | S40: 129829.9086 | T40: =HLOOKUP($C$17,$I$33:$S$40,8)*W51 -> 129829.9086 | U40: 0 | V40: =$D$19%*$C$15 -> 4900 | AC40: Royal London PIMS 5yr | AD40: 77981.15169 | AE40: 75579.33222 | AF40: 70000
T41: =T38-T35 -> 47685.11719 | U41: DIFFERENCE | AC41: Royal London PIMS 10yr | AD41: 81000.79329 | AE41: 75140.38589 | AF41: 70000
C43: Surrender Charge | D43: How often reduces | F43: Amount reduces by | G43: How many years? | I43: 1 Cost | J43: 2 Cost | K43: 3 Cost | L43: 4 Cost | M43: 5 Cost | N43: 6 Cost | O43: 7 Cost | P43: 8 Cost | Q43: 9 Cost | R43: 10 Cost
W44: Currency In | X44: Currency Out | AB44: Input sheet data table | AD44: Fee change 2%
A45: Platform 1 | C45: =C65 -> 0 | F45: 0 | G45: 0 | I45: 0 | J45: 0 | K45: 0 | L45: 0 | M45: 0 | N45: 0 | O45: 0 | P45: 0 | Q45: 0 | R45: 0 | W45: EURO (€) | X45: EURO (€) | Y45: £/€ | Z45: 1.22 | AB45: Min | AC45: =MIN(T34:T40) -> 117312.3151 | AD45: =SUM(AC45*2%) -> 2346.246302
A46: Generali | C46: =IF(E16,2,8) -> 8 | D46: quarterly | F46: =IF(E16,0.1,0.4) -> 0.4 | G46: 5 | I46: =IF(E16,C46-0.2,C46-0.8) -> 7.2 | J46: =I46-$C46/$G46 -> 5.6 | K46: =J46-$C46/$G46 -> 4 | L46: 2.4 | M46: 0.8 | N46: 0 | O46: 0 | P46: 0 | Q46: 0 | R46: 0 | W46: GBP (£) | X46: GBP (£) | Y46: £/$ | Z46: 1.66 | AB46: Max | AC46: =MAX(T34:T40) -> 164997.4323 | AD46: =SUM(AC46*2%) -> 3299.948646
A47: RS AV279 | C47: 8 | D47: annually | F47: 1 | G47: 8 | I47: =C47-0.5 -> 7.5 | J47: =I47-$C47/$G47 -> 6.5 | K47: 5.5 | L47: 4.5 | M47: 3.5 | N47: 2.5 | O47: 1.5 | P47: 0.5 | Q47: 0 | R47: 0 | W47: USD ($) | X47: USD ($) | Y47: €/$ | Z47: 1.37 | AB47: Difference | AC47: =SUM(AC46-AC45) -> 47685.11719 | AD47: =SUM(AD46-AD45) -> 953.7023438
A48: RS AV797 | C48: =IF(E16,4,8.8) -> 8.8 | D48: annually | F48: =IF(E16,0.8,1.1) -> 1.1 | G48: =IF(E16,5,8) -> 8 | I48: =C48-1 -> 7.8 | J48: =IF((I48-$C48/$G48)<0,0,I48-$C48/$G48) -> 6.7 | K48: 5.6 | L48: 4.5 | M48: =IF((L48-$C48/$G48)<0,0,L48-$C48/$G48) -> 3.4 | N48: =IF((M48-$C48/$G48)<0,0,M48-$C48/$G48) -> 2.3 | O48: 1.2 | P48: 0.1 | Q48: 0 | R48: 0 | W48: User input: | X48: User input: | AB48: % | AC48: =(AC46-AC45)/AC45 -> 0.4064800626
A49: Ascentric | C49: 0 | F49: 0 | G49: 0 | I49: 0 | J49: 0 | K49: 0 | L49: 0 | M49: 0 | N49: 0 | O49: 0 | P49: 0 | Q49: 0 | R49: 0 | W49: 2 | X49: 2
A50: RL PIMS 5yr | C50: =IF(E16,IF($C$15>499000,3.35,3.9),10.2) -> 10.2 | F50: =C50/5 -> 2.04 | G50: 5 | I50: =IF(E16,IF($C$15>499000,C50-0.3,C50-0.4),C50-1) -> 9.2 | J50: =IF((I50-$C50/$G50)<0,0,I50-$C50/$G50) -> 7.16 | K50: 5.12 | L50: 3.08 | M50: =IF((L50-$C50/$G50)<0,0,L50-$C50/$G50) -> 1.04 | N50: 0 | O50: 0 | P50: 0 | Q50: 0 | R50: 0 | W50: =IF(W49=3,W47,IF(W49=2,W46,W45)) -> GBP (£) | X50: =IF(X49=3,X47,IF(X49=2,X46,X45)) -> GBP (£)
A51: RL PIMS 10yr | C51: 11.05 | F51: 1.105 | G51: 10 | I51: =C51-0.5 -> 10.55 | J51: =I51-$C51/$G51 -> 9.445 | K51: =J51-$C51/$G51 -> 8.34 | L51: 7.235 | M51: 6.13 | N51: 5.025 | O51: 3.92 | P51: 2.815 | Q51: 1.71 | R51: 0.605 | W51: =IF(W49=1,IF(X49=2,1/Z45,Z47),IF(W49=X49,1,IF(W49=2,IF(X49=1,Z45,Z46),IF(W49=3,IF(X49=1,1/Z47,1/Z46))))) -> 1
A52: RL PIMS 5yr | C52: 9.775 | F52: 1.22188 | G52: 8 | I52: =C9 -> 2.04 | J52: =$I52+I52 -> 4.08 | K52: =$I52+J52 -> 6.12 | L52: =$I52+K52 -> 8.16 | M52: =$I52+L52 -> 10.2 | N52: 0 | O52: 0 | P52: 0 | Q52: 0 | R52: 0
A53: RL PIMS 10yr | C53: 9.35 | F53: 0.935 | G53: 10 | I53: =C10 -> 1.105 | J53: =$I53+I53 -> 2.21 | K53: =$I53+J53 -> 3.315 | L53: 4.42 | M53: 5.525 | N53: 6.63 | O53: 7.735 | P53: 8.84 | Q53: 9.945 | R53: 11.05
A54: RL PIMS 5yr | C54: 9.775 | F54: 1.22188 | G54: 8 | I54: =C54 -> 9.775 | J54: =I54-$C54/$G54 -> 8.553125 | K54: 7.33125 | L54: 6.109375 | M54: 4.8875 | N54: 3.665625 | O54: 2.44375 | P54: 1.221875 | Q54: 0 | R54: 0
A55: RL PIMS 10yr | C55: 9.35 | F55: 0.935 | G55: 10 | I55: =C55 -> 9.35 | J55: =I55-$C55/$G55 -> 8.415 | K55: 7.48 | L55: 6.545 | M55: 5.61 | N55: 4.675 | O55: 3.74 | P55: 2.805 | Q55: 1.87 | R55: 0.935
F58: 8.5 | G58: 2 | H58: 3 | I58: 4 | J58: 5 | K58: 6 | L58: 7 | M58: 8 | N58: 9 | O58: 10
F59: 0.11 | G59: =$F$59+F59 -> 0.22 | H59: 0.33 | I59: 0.44 | J59: 0.55 | K59: 0.66 | L59: 0.77 | M59: =$F$59+L59 -> 0.88 | N59: =$F$59+M59 -> 0.99 | O59: =$F$59+N59 -> 1.1
F60: =$F$58*F59 -> 0.935 | G60: 1.87 | H60: 2.805 | I60: 3.74 | J60: 4.675 | K60: 5.61 | L60: 6.545 | M60: 7.48 | N60: =$F$58*N59 -> 8.415 | O60: =$F$58*O59 -> 9.35
F61: 8.5 | G61: 2 | H61: 3 | I61: 4 | J61: 5 | K61: 6 | L61: 7 | M61: 8
F62: 0.14375 | G62: =$F$62+F62 -> 0.2875 | H62: 0.43125 | I62: 0.575 | J62: 0.71875 | K62: 0.8625 | L62: 1.00625 | M62: 1.15
F63: =$F$58*F62 -> 1.221875 | G63: 2.44375 | H63: 3.665625 | I63: 4.8875 | J63: 6.109375 | K63: 7.33125 | L63: 8.553125 | M63: 9.775
F64: =G63-F63 -> 1.221875 | G64: 1.221875 | H64: 1.221875 | I64: 1.221875 | J64: 1.221875 | K64: 1.221875 | L64: =M63-L63 -> 1.221875 | M64: =N60-M60 -> 0.935 | N64: =O60-N60 -> 0.935
I67: =(100-I46)% -> 0.928

Sheet Sheet1
